bitfinex/quotes_BTCUSD_20251104
["timestamp","ask_amount","ask_price","bid_price","bid_amount"]
[1762292993848,0.04043377,99623.0,99604.0,0.00042539]
[1762292994029,0.20078491,99610.0,99605.0,0.20079313]
[1762292994232,0.04043377,99623.0,99606.0,0.20078975]
[1762292994430,0.20077857,99613.0,99608.0,0.20078628]
[1762292994631,0.20077195,99616.0,99610.0,0.20078129]
[1762292994990,0.20077312,99615.0,99610.0,0.20078222]
[1762292995417,0.04043377,99623.0,99607.0,0.00998923]
[1762292995724,0.01003613,99640.0,99620.0,0.08536322]
[1762292995930,0.02003309,99670.0,99620.0,0.09540136]
[1762292995931,0.02962,99648.0,99620.0,0.09540136]
[1762292996128,0.02962,99648.0,99628.0,0.20074671]
[1762292996129,0.20072459,99640.0,99628.0,0.20074671]
[1762292996345,0.20073816,99633.0,99625.0,0.2007511]
[1762292996547,0.20073816,99633.0,99620.0,0.14473236]
[1762292996548,0.20073816,99633.0,99626.0,0.20075068]
[1762292996751,0.01126992,99640.0,99620.0,0.14473236]
[1762292996752,0.20074242,99631.0,99620.0,0.14473236]
[1762292996955,0.01126992,99640.0,99626.0,0.20075003]
[1762292997155,0.34,99643.0,99620.0,0.13469422]
[1762292997359,0.20075952,99622.0,99619.0,0.00998923]
[1762292997566,0.20078083,99612.0,99605.0,0.00998923]
[1762292997786,0.02962,99626.0,99605.0,0.00998923]
[1762292998013,0.01003713,99630.0,99605.0,0.00998923]
[1762292998212,0.01003713,99630.0,99610.0,0.049331]
[1762292998415,0.20075918,99622.0,99610.0,0.049331]
[1762292998621,0.01003713,99630.0,99619.0,0.08536322]
[1762292998829,0.20076019,99622.0,99619.0,0.08536322]
[1762292999032,0.20074891,99627.0,99621.0,0.20075899]
[1762292999237,0.01003713,99630.0,99605.0,0.00998923]
[1762292999439,0.20075886,99623.0,99614.0,0.08536322]
[1762292999641,0.01003713,99630.0,99614.0,0.08536322]
[1762292999843,0.20075685,99623.0,99622.0,0.0007192]
[1762293000218,0.20074476,99629.0,99623.0,0.20075685]
[1762293000524,0.01003613,99640.0,99628.0,0.200745]
[1762293000735,0.01003411,99660.0,99636.0,0.08536322]
[1762293000937,0.00914236,99658.0,99636.0,0.08536322]
[1762293001138,0.87854523,99650.0,99632.0,0.2007371]
[1762293001448,0.02962,99633.0,99620.0,0.00998923]
[1762293001711,0.20077364,99615.0,99611.0,0.08536322]
[1762293001951,0.02962,99636.0,99619.0,0.20076464]
[1762293002138,0.02962,99636.0,99611.0,0.08574861]
[1762293002139,0.23039902,99612.0,99611.0,0.00038539]
[1762293002339,0.26985902,99612.0,99611.0,0.00038539]
[1762293002761,0.06908,99612.0,99611.0,0.00038539]
[1762293002980,0.20077902,99612.0,99611.0,0.00038539]
[1762293003419,0.87854523,99630.0,99611.0,0.00038539]
[1762293003608,0.20077824,99613.0,99611.0,0.00038539]
[1762293003810,0.20077075,99617.0,99611.0,0.00038539]
[1762293004025,0.20077756,99613.0,99611.0,0.00038539]
[1762293004230,0.20073421,99635.0,99613.0,0.200777]
[1762293004381,0.88857934,99660.0,99627.0,0.08536322]
[1762293004586,0.20071407,99645.0,99630.0,0.049331]
[1762293004743,0.04073838,99659.0,99630.0,0.049331]
[1762293004949,0.20068634,99658.0,99637.0,0.20072758]
[1762293005185,0.00914937,99657.0,99642.0,0.08536322]
[1762293005418,0.05743,99678.0,99642.0,0.08536322]
[1762293005419,0.00914937,99656.0,99642.0,0.08536322]
[1762293005627,0.03003007,99700.0,99650.0,0.01003512]
[1762293005628,0.91819632,99690.0,99650.0,0.01003512]
[1762293005829,0.91819632,99690.0,99663.0,0.08536322]
[1762293005830,0.00915239,99689.0,99663.0,0.08536322]
[1762293006032,0.20067071,99666.0,99663.0,0.08536322]
[1762293006459,0.00048384,99666.0,99663.0,0.08536322]
[1762293006682,0.00048384,99666.0,99665.0,0.20067225]
[1762293007164,0.00048384,99666.0,99665.0,0.21066148]
[1762293007838,0.00048384,99666.0,99665.0,0.55066148]
[1762293009072,0.21081219,99710.0,99700.0,0.049331]
[1762293009073,0.0002,99710.0,99700.0,0.049331]
[1762293009246,0.00915407,99709.0,99699.0,0.20060246]
[1762293009446,0.00034514,99710.0,99699.0,0.20060246]
[1762293009447,0.20974169,99708.0,99700.0,0.08536322]
[1762293009653,0.00915407,99707.0,99700.0,0.08536322]
[1762293010003,0.00034514,99710.0,99696.0,0.00998923]
[1762293010004,0.00915407,99706.0,99701.0,0.08536322]
[1762293010225,0.00915407,99706.0,99686.0,0.20062842]
[1762293010226,0.20060784,99697.0,99683.0,0.2006359]
[1762293010435,0.20063512,99684.0,99681.0,0.00998923]
[1762293010681,0.2006179,99692.0,99681.0,0.00998923]
[1762293010926,0.87854523,99700.0,99682.0,0.08536322]
[1762293011172,0.20058369,99709.0,99697.0,0.08536322]
[1762293011404,0.00914755,99708.0,99697.0,0.09535245]
[1762293011626,0.00914755,99707.0,99697.0,0.09535245]
[1762293011845,0.2006047,99699.0,99697.0,0.09535245]
[1762293012056,0.2006047,99699.0,99697.0,0.00998923]
[1762293012299,0.88891945,99710.0,99686.0,0.00998923]
[1762293012506,0.00913937,99709.0,99686.0,0.00998923]
[1762293012677,0.20062796,99687.0,99686.0,0.00998923]
[1762293013143,0.20060381,99699.0,99675.0,0.00998923]
[1762293013351,0.88857532,99700.0,99678.0,0.08536322]
[1762293013529,0.20062394,99689.0,99679.0,0.08536322]
[1762293013745,0.20071424,99645.0,99622.0,0.00998923]
[1762293014039,0.0100331,99670.0,99643.0,0.08536322]
[1762293014040,0.20071533,99644.0,99643.0,0.08536322]
[1762293014265,0.20071533,99644.0,99609.0,0.00998923]
[1762293014266,0.200777,99613.0,99600.0,0.00052]
[1762293014493,0.20077436,99615.0,99600.0,0.00052]
[1762293014714,0.20079313,99605.0,99600.0,0.00052]
[1762293014928,0.20079313,99605.0,99604.0,0.00052384]
[1762293014929,3.56746593,99605.0,99604.0,0.00052384]
[1762293016032,3.36848,99605.0,99604.0,0.00052384]
[1762293016250,0.34,99605.0,99604.0,0.00052384]
[1762293016950,0.34,99605.0,99604.0,0.00056384]
[1762293017156,0.02848,99613.0,99604.0,0.00056384]
[1762293017532,0.20078801,99608.0,99604.0,0.00056384]
[1762293017695,0.20079291,99606.0,99604.0,0.00056384]
[1762293017900,0.20079291,99606.0,99604.0,0.00060384]
[1762293018178,0.02848,99613.0,99604.0,0.00060384]
[1762293018376,0.64960108,99620.0,99604.0,0.20139781]
[1762293018525,0.20078304,99611.0,99604.0,0.00060384]
[1762293018701,0.20079157,99606.0,99604.0,0.00060384]
[1762293019249,0.20078025,99612.0,99604.0,0.00060384]
[1762293019452,0.200777,99613.0,99604.0,0.00060384]
[1762293019660,0.05476,99633.0,99604.0,0.00060384]
[1762293019661,0.20076028,99622.0,99605.0,0.08536322]
[1762293019829,0.65963821,99630.0,99605.0,0.08536322]
[1762293020037,0.65963821,99630.0,99612.0,0.00074499]
[1762293020038,0.01003713,99630.0,99612.0,0.00074499]
[1762293020244,0.64960108,99640.0,99624.0,0.20075328]
[1762293020481,0.200738,99633.0,99624.0,0.20075328]
[1762293020690,0.64960108,99634.0,99604.0,0.00060384]
[1762293020892,0.34,99639.0,99604.0,0.00060384]
[1762293020893,0.64960108,99620.0,99610.0,0.200782]
[1762293021099,0.20072864,99637.0,99618.0,0.20076631]
[1762293021309,0.03003308,99670.0,99610.0,0.39937015]
[1762293021310,0.05476,99653.0,99610.0,0.39937015]
[1762293021525,0.0600331,99670.0,99625.0,0.08536322]
[1762293021526,0.64960108,99650.0,99625.0,0.08536322]
[1762293021725,0.20070447,99649.0,99640.0,0.08536322]
[1762293021933,0.20070883,99647.0,99640.0,0.28608567]
[1762293022134,0.20069912,99652.0,99645.0,0.20071203]
[1762293022344,0.64960108,99660.0,99640.0,0.08536322]
[1762293022551,0.01104579,99665.0,99660.0,0.20068099]
[1762293022695,0.20066068,99671.0,99662.0,0.20067785]
[1762293022898,0.20066511,99669.0,99662.0,0.20067785]
[1762293023106,0.20080574,99671.0,99665.0,0.20067171]
[1762293023107,0.00014506,99671.0,99665.0,0.20067171]
[1762293023505,0.00014506,99671.0,99655.0,0.08536322]
[1762293023506,0.20067082,99666.0,99655.0,0.08536322]
[1762293024033,0.20067082,99666.0,99659.0,0.20068265]
[1762293024276,0.00014506,99671.0,99655.0,0.08536322]
[1762293024466,0.00014506,99671.0,99655.0,0.20069059]
[1762293024666,0.00014506,99671.0,99656.0,0.08536322]
[1762293024845,0.00014506,99671.0,99666.0,0.20067023]
[1762293025048,0.00014506,99671.0,99668.0,0.20066621]
[1762293025232,0.00014506,99671.0,99670.0,0.20066218]
[1762293025662,0.00014506,99671.0,99666.0,0.00998923]
[1762293025870,0.00014506,99671.0,99666.0,0.21065745]
[1762293026070,0.00014506,99671.0,99670.0,0.24999318]
[1762293026627,0.00014506,99671.0,99670.0,0.20066218]
[1762293026836,0.20080594,99671.0,99666.0,0.21065924]
[1762293027051,0.00014506,99671.0,99666.0,0.00998923]
[1762293027239,0.00014506,99671.0,99670.0,0.20066218]
[1762293027450,0.00014506,99671.0,99670.0,0.24999318]
[1762293027964,0.00014506,99671.0,99670.0,0.20066218]
[1762293028582,0.00014506,99671.0,99670.0,0.24999318]
[1762293029310,0.00014506,99671.0,99670.0,0.20066218]
[1762293029695,0.00014506,99671.0,99670.0,0.24999318]
[1762293030434,0.00014506,99671.0,99670.0,0.20066218]
[1762293030655,0.00014506,99671.0,99670.0,0.24999318]
[1762293031055,0.00014506,99671.0,99670.0,0.20066218]
[1762293031404,0.00014506,99671.0,99670.0,0.24999318]
[1762293031539,0.00014506,99671.0,99670.0,0.20066218]
[1762293032188,0.00014506,99671.0,99670.0,0.24999318]
[1762293032803,0.00014506,99671.0,99670.0,0.20070218]
[1762293033014,0.00014506,99671.0,99670.0,0.25003318]
[1762293034073,0.00014506,99671.0,99670.0,0.22570218]
[1762293036211,0.00014506,99671.0,99670.0,0.20070218]
[1762293036618,0.00014506,99671.0,99670.0,0.54070218]
[1762293037654,0.00014506,99671.0,99670.0,0.59003318]
[1762293037841,0.00014506,99671.0,99670.0,0.54070218]
[1762293038048,0.00014506,99671.0,99670.0,0.59003318]
[1762293038273,0.00014506,99671.0,99670.0,0.54070218]
[1762293039047,0.00014506,99671.0,99670.0,0.59003318]
[1762293039426,0.00014506,99671.0,99670.0,0.389371]
[1762293039606,0.00014506,99671.0,99670.0,0.34004]
[1762293043283,0.0002,99710.0,99690.0,0.049331]
[1762293043491,0.00034522,99710.0,99705.0,0.20059052]
[1762293043707,0.00034522,99710.0,99705.0,0.20059155]
[1762293043909,0.20058862,99707.0,99704.0,0.00998923]
[1762293044112,0.00034522,99710.0,99708.0,0.20058379]
[1762293044316,0.20059109,99706.0,99704.0,0.00998923]
[1762293044529,0.2006153,99694.0,99688.0,0.20062442]
[1762293044668,0.20062509,99689.0,99687.0,0.00998923]
[1762293045068,0.20062585,99689.0,99687.0,0.00998923]
[1762293045270,0.64960108,99700.0,99687.0,0.00998923]
[1762293045515,0.35428513,99856.0,99688.0,0.20062423]
[1762293045516,0.65997538,99710.0,99688.0,0.20062423]
[1762293045745,0.65997538,99710.0,99687.0,0.00998923]
[1762293045746,0.85020489,99700.0,99687.0,0.00998923]
[1762293045949,0.20063624,99683.0,99681.0,0.1495]
[1762293046101,0.65963117,99700.0,99679.0,0.1495]
[1762293046312,0.200637,99683.0,99679.0,0.1495]
[1762293046495,0.01003009,99700.0,99679.0,0.1495]
[1762293046688,0.20063713,99683.0,99679.0,0.1495]
[1762293046904,0.20064124,99681.0,99679.0,0.1495]
[1762293047343,0.20063768,99683.0,99679.0,0.1495]
[1762293047547,0.20063894,99682.0,99679.0,0.1495]
[1762293048036,0.20064205,99680.0,99679.0,0.1495]
[1762293048586,0.20065211,99675.0,99661.0,0.00998923]
[1762293048816,0.20065006,99677.0,99640.0,0.09539935]
[1762293048817,0.23656017,99671.0,99647.0,0.00998923]
[1762293049185,0.57656017,99671.0,99650.0,0.01003512]
[1762293049655,0.57656017,99671.0,99640.0,0.01003613]
[1762293049774,0.57656017,99671.0,99643.0,0.20071549]
[1762293049984,0.57656017,99671.0,99653.0,0.20069588]
[1762293050213,0.57656017,99671.0,99659.0,0.20068285]
[1762293050415,0.57656017,99671.0,99651.0,0.00998923]
[1762293050632,0.57656017,99671.0,99656.0,0.20068937]
[1762293050850,0.34,99671.0,99664.0,0.20067378]
[1762293051077,0.20065937,99672.0,99664.0,0.20067378]
[1762293051267,0.20065801,99673.0,99665.0,0.20067123]
[1762293051483,0.20065539,99674.0,99669.0,0.20066318]
[1762293051689,0.34,99679.0,99667.0,0.20066635]
[1762293051918,0.07340202,99743.0,99657.0,0.08536322]
[1762293051919,0.20065895,99672.0,99657.0,0.08536322]
[1762293052240,0.200656,99674.0,99668.0,0.20066523]
[1762293052473,0.20065917,99672.0,99665.0,0.20067123]
[1762293052643,0.20066017,99671.0,99657.0,0.286051]
[1762293052856,0.20066017,99671.0,99651.0,0.00998923]
[1762293052988,0.20066017,99671.0,99664.0,0.20067301]
[1762293053190,0.20066017,99671.0,99652.0,0.20069727]
[1762293053191,0.01088236,99680.0,99666.0,0.20066907]
[1762293053521,0.20066017,99671.0,99663.0,0.20067445]
[1762293053923,0.20066017,99671.0,99654.0,0.20069298]
[1762293054125,0.20066017,99671.0,99655.0,0.20069145]
[1762293054286,0.20066017,99671.0,99662.0,0.2006782]
[1762293054525,0.02601,99688.0,99674.0,0.20065217]
[1762293054689,0.20062816,99687.0,99681.0,0.20063865]
[1762293055028,0.20062816,99687.0,99675.0,0.08536322]
[1762293055029,0.65963117,99700.0,99680.0,0.2006412]
[1762293055234,0.64960108,99690.0,99684.0,0.2006322]
[1762293055426,0.64960108,99690.0,99682.0,0.20063626]
[1762293055427,0.20062883,99687.0,99682.0,0.20063626]
[1762293055700,0.64960108,99690.0,99670.0,4e-05]
[1762293055912,0.2006584,99672.0,99670.0,4e-05]
[1762293056047,0.64960108,99680.0,99670.0,4e-05]
[1762293056233,0.20065317,99675.0,99670.0,4e-05]
[1762293056438,0.20065317,99675.0,99670.0,0.2007015]
[1762293056676,0.2006601,99672.0,99670.0,4e-05]
[1762293056848,0.0359,99671.0,99670.0,4e-05]
[1762293057280,0.2006601,99672.0,99670.0,4e-05]
[1762293057679,0.0359,99671.0,99670.0,4e-05]
[1762293057907,0.2006601,99672.0,99670.0,4e-05]
[1762293058142,0.20065281,99675.0,99670.0,4e-05]
[1762293058436,0.20065867,99672.0,99670.0,4e-05]
[1762293058663,0.20065362,99675.0,99670.0,4e-05]
[1762293058880,0.64960108,99680.0,99671.0,0.20066017]
[1762293059069,0.64960108,99680.0,99670.0,4e-05]
[1762293059215,0.20064608,99678.0,99670.0,4e-05]
[1762293059416,0.20065951,99672.0,99670.0,4e-05]
[1762293060130,0.0359,99671.0,99670.0,4e-05]
[1762293060782,0.2007367,99633.0,99614.0,0.05385996]
[1762293061050,0.2007367,99633.0,99610.0,0.05937015]
[1762293061051,0.2267467,99633.0,99632.0,0.00071499]
[1762293061336,0.05534,99656.0,99632.0,0.00071499]
[1762293061617,0.64960108,99650.0,99632.0,0.00071499]
[1762293061831,0.05534,99658.0,99632.0,0.00071499]
[1762293061832,0.67561108,99660.0,99655.0,0.2006921]
[1762293062048,0.65963418,99670.0,99648.0,0.08536322]
[1762293062254,0.34,99680.0,99650.0,0.049331]
[1762293062255,0.98960108,99680.0,99650.0,0.049331]
[1762293062525,0.34,99686.0,99650.0,0.05936612]
[1762293062768,0.01003109,99690.0,99663.0,0.08536322]
[1762293063011,0.20061399,99694.0,99670.0,0.0593641]
[1762293063235,0.21063214,99700.0,99670.0,0.049331]
[1762293063436,0.20061589,99693.0,99682.0,0.20063729]
[1762293063654,0.64960108,99690.0,99664.0,0.34]
[1762293063863,0.64960108,99690.0,99630.0,0.02003712]
[1762293063864,0.64960108,99674.0,99652.0,0.00998923]
[1762293064067,0.20069584,99654.0,99652.0,0.00048384]
[1762293064278,0.64960108,99662.0,99652.0,0.00048384]
[1762293064480,0.65963418,99670.0,99655.0,0.20069113]
[1762293064688,0.02601,99678.0,99653.0,0.08536322]
[1762293064924,0.02601,99678.0,99652.0,0.00048384]
[1762293064925,0.20069641,99653.0,99652.0,0.00048384]
[1762293065277,0.64960108,99663.0,99652.0,0.00048384]
[1762293065477,0.20068276,99660.0,99653.0,0.20069459]
[1762293065685,0.2006945,99654.0,99652.0,0.00048384]
[1762293066093,0.0100321,99680.0,99652.0,0.00048384]
[1762293066296,0.64960108,99662.0,99652.0,0.00048384]
[1762293066536,0.2006923,99656.0,99652.0,0.00048384]
[1762293066706,0.64960108,99662.0,99652.0,0.00048384]
[1762293066939,0.2006803,99661.0,99654.0,0.20069357]
[1762293067140,0.20067023,99666.0,99652.0,0.00048384]
[1762293067342,0.64960108,99670.0,99652.0,0.00048384]
[1762293067588,0.02003008,99700.0,99668.0,0.08536322]
[1762293067589,0.01003009,99700.0,99668.0,0.08536322]
[1762293067695,0.2106339,99700.0,99669.0,0.20066419]
[1762293067893,0.2106339,99700.0,99668.0,0.08536322]
[1762293067894,0.65963117,99700.0,99676.0,0.20064915]
[1762293068095,0.65963117,99700.0,99662.0,0.20067761]
[1762293068096,0.65963217,99690.0,99662.0,0.20067761]
[1762293068399,0.01003109,99690.0,99660.0,0.01003411]
[1762293068591,0.20065589,99674.0,99665.0,0.20067047]
[1762293068726,0.64960108,99680.0,99663.0,0.20067445]
[1762293068924,0.64960108,99680.0,99660.0,0.21071463]
[1762293068925,0.20066984,99667.0,99660.0,0.21071463]
[1762293069252,0.64960108,99680.0,99658.0,0.00998923]
[1762293069253,0.20067978,99662.0,99658.0,0.00998923]
[1762293069456,0.20067978,99662.0,99630.0,0.01003713]
[1762293069457,0.20069641,99653.0,99651.0,0.34]
[1762293069751,0.20069641,99653.0,99645.0,0.00998923]
[1762293069949,0.20069641,99653.0,99616.0,0.05385996]
[1762293069950,0.2007367,99633.0,99616.0,0.05385996]
[1762293070166,0.20073435,99635.0,99632.0,0.00037621]
[1762293070318,0.64960108,99642.0,99632.0,0.00037621]
[1762293070505,0.20073345,99635.0,99632.0,0.00037621]
[1762293070708,0.34,99640.0,99632.0,0.00037621]
[1762293071283,0.05263,99652.0,99632.0,0.00037621]
[1762293071284,0.65963519,99660.0,99632.0,0.00037621]
[1762293071489,0.21071776,99660.0,99632.0,0.00037621]
[1762293071679,0.65963519,99660.0,99633.0,0.2007367]
[1762293071892,0.20069409,99655.0,99632.0,0.00037621]
[1762293072104,0.64960108,99670.0,99644.0,0.08536322]
[1762293072250,0.20067567,99664.0,99657.0,0.20068683]
[1762293072470,0.20067567,99664.0,99644.0,0.08536322]
[1762293072471,0.0106537,99676.0,99659.0,0.08536322]
[1762293072711,0.0100321,99680.0,99670.0,0.20066067]
[1762293072712,0.20064764,99678.0,99670.0,0.20066067]
[1762293072935,0.20064764,99678.0,99671.0,0.20065837]
[1762293073088,0.20062446,99689.0,99676.0,0.08536322]
[1762293073292,0.65963217,99690.0,99676.0,0.08536322]
[1762293073293,0.20062975,99687.0,99676.0,0.08536322]
[1762293073519,0.20063715,99683.0,99670.0,0.049331]
[1762293073744,0.20064022,99681.0,99676.0,0.2860125]
[1762293073942,0.00048435,99683.0,99681.0,0.20063973]
[1762293074357,0.00048435,99683.0,99680.0,0.20064053]
[1762293074358,0.00048435,99683.0,99680.0,0.05932023]
[1762293074566,0.00048435,99683.0,99680.0,0.00998923]
[1762293074767,0.20064129,99682.0,99678.0,0.00998923]
[1762293075470,0.00048435,99683.0,99678.0,0.00998923]
[1762293075471,0.20064406,99679.0,99678.0,0.00998923]
[1762293075670,0.20066822,99667.0,99666.0,0.00998923]
[1762293076099,0.05263,99675.0,99654.0,0.00998923]
[1762293076320,0.20069166,99656.0,99654.0,0.00998923]
[1762293076529,1.07840917,99670.0,99639.0,0.00998923]
[1762293076530,0.06322,99655.0,99639.0,0.00998923]
[1762293076732,0.20073065,99636.0,99631.0,0.05385996]
[1762293076933,0.20070747,99648.0,99630.0,0.05385996]
[1762293077108,0.87774296,99650.0,99632.0,0.20096952]
[1762293077346,0.20071044,99647.0,99636.0,0.20073008]
[1762293077527,0.88777707,99660.0,99637.0,0.28609186]
[1762293077738,0.05263,99659.0,99632.0,0.00023115]
[1762293077972,0.20071655,99644.0,99636.0,0.20072909]
[1762293078172,0.20070946,99647.0,99639.0,0.20072406]
[1762293078341,0.20070807,99648.0,99639.0,0.20072406]
[1762293078543,0.2007352,99634.0,99632.0,0.00023115]
[1762293080777,3.0,99633.0,99632.0,0.00023115]
[1762293081460,0.20078103,99611.0,99610.0,0.05385996]
[1762293081658,0.20079313,99605.0,99602.0,0.05385996]
[1762293082090,0.20079313,99605.0,99604.0,0.05397996]
[1762293082269,0.20079313,99605.0,99604.0,0.00012]
[1762293082479,0.20079313,99605.0,99604.0,0.00083939]
[1762293082679,0.20079313,99605.0,99604.0,0.00098445]
[1762293083138,0.20078506,99609.0,99604.0,0.00098445]
[1762293083349,0.40145218,99639.0,99604.0,0.00026506]
[1762293083350,0.20077933,99612.0,99604.0,0.00026506]
[1762293083563,0.20078728,99608.0,99604.0,0.00026506]
[1762293083768,0.2007921,99606.0,99604.0,0.00026506]
[1762293084824,0.2007921,99606.0,99561.0,0.20088013]
[1762293084825,0.20084757,99578.0,99575.0,0.07218992]
[1762293085063,0.20085156,99577.0,99575.0,0.00038539]
[1762293085268,0.87774296,99590.0,99575.0,0.00038539]
[1762293085472,0.20083171,99586.0,99581.0,0.20084057]
[1762293085675,0.05263,99613.0,99576.0,0.28621281]
[1762293085879,0.2008038,99600.0,99593.0,0.20081535]
[1762293086084,0.20080675,99599.0,99592.0,0.20081934]
[1762293086300,0.05263,99613.0,99594.0,0.20081337]
[1762293086473,0.05263,99609.0,99560.0,0.35044419]
[1762293086693,0.20080522,99599.0,99567.0,0.34]
[1762293086890,0.20083311,99586.0,99577.0,0.08536322]
[1762293087091,0.20084265,99581.0,99574.0,0.20101524]
[1762293087304,0.02713,99588.0,99574.0,0.00016]
[1762293087532,0.20085161,99576.0,99574.0,0.00016]
[1762293088344,0.19944939,99576.0,99574.0,0.00016]
[1762293088711,0.03618228,99587.0,99574.0,0.00016]
[1762293088929,0.34,99598.0,99574.0,0.00016]
[1762293089137,0.22795925,99588.0,99586.0,0.00118207]
[1762293089330,0.05263,99587.0,99574.0,0.00016]
[1762293089615,0.20085161,99576.0,99574.0,0.00016]
[1762293089830,0.20083291,99586.0,99574.0,0.00016]
[1762293090034,0.20085114,99577.0,99574.0,0.00016]
[1762293090386,0.05263,99586.0,99574.0,0.00016]
[1762293090591,0.02713,99588.0,99576.0,0.20085161]
[1762293090935,0.02713,99588.0,99574.0,0.00016]
[1762293090936,0.20084123,99582.0,99574.0,0.00016]
[1762293091138,0.20085161,99576.0,99574.0,0.00016]
[1762293092162,0.20082942,99587.0,99574.0,0.00016]
[1762293092163,0.0507,99597.0,99574.0,0.00016]
[1762293092368,0.02713,99603.0,99580.0,0.08536322]
[1762293092547,0.20081221,99596.0,99585.0,0.20083232]
[1762293092738,0.20082338,99590.0,99585.0,0.20083327]
[1762293092943,0.20082338,99590.0,99584.0,0.20083417]
[1762293093144,0.02713,99603.0,99574.0,0.00016]
[1762293093145,0.02713,99603.0,99579.0,0.08536322]
[1762293093295,0.02713,99603.0,99588.0,0.20082586]
[1762293093296,0.20081528,99595.0,99588.0,0.20082586]
[1762293093490,0.02713,99603.0,99579.0,0.08536322]
[1762293093491,1.07854818,99600.0,99579.0,0.08536322]
[1762293093692,0.20085161,99576.0,99574.0,0.00016]
[1762293094058,0.01004016,99600.0,99576.0,0.20085161]
[1762293094195,0.20085161,99576.0,99574.0,0.00016]
[1762293094399,0.23389161,99576.0,99574.0,0.00016]
[1762293096015,0.20084938,99578.0,99574.0,0.00016]
[1762293096016,0.20085101,99577.0,99574.0,0.00016]
[1762293096268,0.87774296,99585.0,99574.0,0.00016]
[1762293096502,0.34,99589.0,99576.0,0.00143919]
[1762293096716,0.34,99589.0,99574.0,0.00016]
[1762293096717,0.20084959,99577.0,99574.0,0.00016]
[1762293096940,0.87774296,99590.0,99574.0,0.00016]
[1762293097145,0.87774296,99590.0,99575.0,0.20123853]
[1762293097345,0.87774296,99590.0,99576.0,0.02013985]
[1762293097639,1.07856706,99590.0,99576.0,0.02013985]
[1762293097801,0.87774296,99590.0,99575.0,0.2012372]
[1762293098003,0.20080128,99601.0,99575.0,0.00038539]
[1762293098230,0.02713,99603.0,99575.0,0.00038539]
[1762293098231,0.20079782,99603.0,99584.0,0.20083547]
[1762293098433,0.20079782,99603.0,99583.0,0.08536322]
[1762293098434,0.0507,99617.0,99589.0,0.20082344]
[1762293098628,0.0507,99617.0,99583.0,0.08536322]
[1762293098629,0.88778211,99610.0,99584.0,0.20083547]
[1762293098804,0.88778211,99610.0,99583.0,0.08536322]
[1762293099001,0.2007928,99606.0,99600.0,0.2008018]
[1762293099193,0.20081458,99595.0,99586.0,0.00998923]
[1762293099397,0.20080211,99601.0,99596.0,0.20081001]
[1762293099628,0.20080891,99598.0,99589.0,0.20082367]
[1762293099832,0.02438,99605.0,99586.0,0.00998923]
[1762293100063,0.20079514,99604.0,99594.0,0.20081525]
[1762293100414,0.02438,99605.0,99597.0,0.20080797]
[1762293100614,0.02438,99605.0,99586.0,0.00998923]
[1762293100762,0.02438,99605.0,99590.0,0.20082231]
[1762293101191,0.20080698,99599.0,99594.0,0.20081388]
[1762293101345,0.02438,99605.0,99600.0,0.20080176]
[1762293101543,0.87774296,99610.0,99590.0,0.02961748]
[1762293101855,0.87774296,99610.0,99574.0,0.00016]
[1762293101856,0.05919,99591.0,99588.0,0.00113066]
[1762293102060,0.20082337,99590.0,99588.0,0.00113066]
[1762293102257,0.20085161,99576.0,99574.0,0.00016]
[1762293102461,0.23555161,99576.0,99574.0,0.00016]
[1762293102661,0.57555161,99576.0,99574.0,0.00016]
[1762293103686,0.23555161,99576.0,99574.0,0.00016]
[1762293105178,3.61173389,99576.0,99574.0,0.00016]
[1762293105382,0.61173389,99576.0,99574.0,0.00016]
[1762293105805,0.57555161,99576.0,99574.0,0.00016]
[1762293106604,0.57555161,99576.0,99560.0,0.0004]
[1762293106605,0.54088187,99561.0,99560.0,0.0004]
[1762293106808,2.60007187,99561.0,99560.0,0.00054491]
[1762293107008,0.20091415,99545.0,99540.0,0.0004]
[1762293107263,0.26010415,99545.0,99544.0,0.00022554]
[1762293107626,0.60010415,99545.0,99544.0,0.00022554]
[1762293107850,0.27080728,99545.0,99544.0,0.00022554]
[1762293108472,2.20092223,99541.0,99540.0,0.0004]
[1762293108765,2.23562223,99541.0,99540.0,0.0004]
[1762293108983,2.61180451,99541.0,99540.0,0.0004]
[1762293109466,0.2371146,99536.0,99530.0,0.0004]
[1762293109645,0.23563232,99536.0,99530.0,0.0004]
[1762293110757,0.28100972,99536.0,99530.0,0.0004]
[1762293110951,0.29940871,99536.0,99530.0,0.0004]
[1762293111155,2.62100972,99536.0,99530.0,0.0004]
[1762293111330,2.62100972,99536.0,99500.0,0.041788]
[1762293111331,0.201003,99501.0,99500.0,0.041788]
[1762293111551,0.225493,99501.0,99500.0,0.04227316]
[1762293112167,0.20099243,99507.0,99500.0,0.04227316]
[1762293112370,0.05052,99524.0,99500.0,0.04227316]
[1762293112571,0.34,99519.0,99500.0,0.04227316]
[1762293112769,0.21012664,99518.0,99510.0,0.20098298]
[1762293112977,0.00915798,99517.0,99511.0,0.2009812]
[1762293113179,0.05052,99528.0,99511.0,0.2009812]
[1762293113180,0.20096826,99519.0,99517.0,0.00295723]
[1762293113389,0.0347,99518.0,99500.0,0.04227316]
[1762293113594,0.0347,99518.0,99500.0,0.24327682]
[1762293113595,0.2009791,99513.0,99500.0,0.24327682]
[1762293113818,0.0347,99518.0,99500.0,0.04227316]
[1762293113991,0.20097876,99513.0,99512.0,0.00308596]
[1762293114482,0.23567876,99513.0,99512.0,0.00308596]
[1762293114685,0.24481616,99513.0,99512.0,0.00308596]
[1762293115346,0.23567876,99513.0,99512.0,0.00308596]
[1762293116941,0.23567876,99513.0,99480.0,0.0004]
[1762293116942,2.54104341,99481.0,99480.0,0.0004]
[1762293117098,0.54106362,99471.0,99470.0,0.0004]
[1762293117296,0.54106362,99471.0,99470.0,0.00054561]
[1762293117297,0.57576362,99471.0,99470.0,0.00054561]
[1762293117684,0.0347,99471.0,99470.0,0.00054561]
[1762293117914,0.04534728,99471.0,99470.0,0.00054561]
[1762293118320,0.37618228,99468.0,99440.0,0.0004]
[1762293118501,0.20112308,99442.0,99440.0,0.00054561]
[1762293120151,0.0347,99441.0,99440.0,0.00054561]
[1762293120327,0.20112308,99442.0,99440.0,0.00054561]
[1762293120640,0.07501,99449.0,99440.0,0.00054561]
[1762293120641,0.20111215,99447.0,99440.0,0.00054561]
[1762293120841,0.0347,99441.0,99440.0,0.00054561]
[1762293121047,0.0347,99441.0,99420.0,0.0004]
[1762293121048,0.20114653,99430.0,99420.0,0.0004]
[1762293121207,0.23584653,99430.0,99420.0,0.0004]
[1762293121424,0.57584653,99430.0,99420.0,0.0004]
[1762293121841,2.57732881,99430.0,99429.0,2.49564474]
[1762293122033,2.57732881,99430.0,99429.0,2.33879676]
[1762293122234,2.62732881,99430.0,99429.0,2.33879676]
[1762293123286,2.62732881,99430.0,99429.0,1.7297221]
[1762293123596,2.62732881,99430.0,99429.0,1.42675256]